bitfinex/quotes_SOLUSD_20240604
["timestamp","ask_amount","ask_price","bid_price","bid_amount"]
[1717490724453,2.2364,165.44,165.4,2.2369]
[1717490724753,7.0,165.42,165.4,2.2369]
[1717490725458,7.0,165.42,165.39,2.237]
[1717490728860,7.0,165.41,165.39,2.237]
[1717490735963,11.1804,165.47,165.4,2.237]
[1717490736140,7.0,165.43,165.4,2.237]
[1717490736639,2.2365,165.44,165.4,2.237]
[1717490736838,9.2365,165.44,165.4,2.237]
[1717490737346,7.0,165.45,165.42,2.2366]
[1717490739267,9.2363,165.45,165.41,2.2368]
[1717490739443,7.0,165.44,165.41,2.2368]
[1717490741073,7.0,165.43,165.4,2.2369]
[1717490741873,9.2365,165.43,165.39,2.237]
[1717490742054,7.0,165.42,165.39,2.237]
[1717490742945,2.2365,165.43,165.39,2.237]
[1717490743144,7.0,165.42,165.39,2.237]
[1717490745148,7.0,165.41,165.39,2.237]
[1717490745348,2.2365,165.43,165.39,2.237]
[1717490745565,7.0,165.41,165.39,2.237]
[1717490746145,7.0,165.41,165.37,4.4747]
[1717490746344,7.0,165.41,165.38,2.2372]
[1717490746575,7.0,165.41,165.39,2.2371]
[1717490751161,2.2366,165.43,165.39,2.2371]
[1717490751462,7.0,165.42,165.4,2.2369]
[1717490751763,2.2365,165.44,165.4,2.2369]
[1717490751970,9.2365,165.44,165.4,2.2369]
[1717490753181,7.0,165.43,165.4,2.2369]
[1717490755389,9.2366,165.43,165.39,2.237]
[1717490757991,4.4719,165.48,165.38,120.0]
[1717490758287,7.0,165.44,165.41,2.2367]
[1717490760290,6.75,165.44,165.41,2.2367]
[1717490761085,6.75,165.44,165.42,2.2367]
[1717490761297,6.75,165.44,165.39,4.6442]
[1717490762269,6.75,165.44,165.41,2.2368]
[1717490762490,9.2363,165.45,165.41,2.2368]
[1717490763192,2.2363,165.46,165.39,4.6442]
[1717490763394,7.0,165.45,165.41,2.2367]
[1717490764091,9.2363,165.45,165.41,2.2367]
[1717490766088,7.0,165.44,165.41,2.2367]
[1717490767078,9.2364,165.44,165.4,2.2369]
[1717490767287,7.0,165.43,165.4,2.2369]
[1717490767493,2.2363,165.45,165.4,2.2369]
[1717490767776,7.0,165.43,165.4,2.2369]
[1717490768192,7.0,165.42,165.4,2.2369]
[1717490769476,7.0,165.42,165.41,2.2368]
[1717490781519,7.0,165.42,165.4,2.2369]
[1717490781694,4.4722,165.47,165.37,4.4746]
[1717490781695,7.0,165.41,165.37,4.4746]
[1717490782292,7.0,165.4,165.39,2.237]
[1717490784015,2.2365,165.44,165.39,2.237]
[1717490784189,7.0,165.41,165.39,2.237]
[1717490790197,7.0,165.4,165.39,2.237]
[1717490792403,7.0,165.4,165.38,2.2372]
[1717490792604,7.0,165.39,165.38,2.2372]
[1717490796732,2.2367,165.42,165.38,2.2372]
[1717490796938,7.0,165.4,165.39,2.2371]
[1717490800122,7.0,165.4,165.34,134.47779465]
[1717490800316,7.0,165.4,165.35,20.0]
[1717490800637,2.2368,165.41,165.36,2.2374]
[1717490800806,7.0,165.39,165.36,2.2374]
[1717490801006,7.0,165.38,165.36,2.2374]
[1717490811150,7.0,165.37,165.35,2.2376]
[1717490817252,2.237,165.4,165.36,2.2375]
[1717490817543,7.0,165.38,165.36,2.2375]
[1717490819233,7.0,165.38,165.35,2.2376]
[1717490820044,2.237,165.4,165.36,2.2374]
[1717490820225,7.0,165.39,165.36,2.2374]
[1717490820764,8.9446,165.47,165.4,2.2368]
[1717490820923,7.0,165.42,165.4,2.2368]
[1717490821354,7.0,165.42,165.39,2.237]
[1717490827341,2.2366,165.43,165.39,2.237]
[1717490827544,7.0,165.42,165.39,2.237]
[1717490829859,2.2366,165.43,165.39,2.237]
[1717490830161,9.2366,165.43,165.39,2.237]
[1717490830325,7.0,165.42,165.39,2.237]
[1717490834644,7.0,165.42,165.38,45.0]
[1717490834950,7.0,165.42,165.39,2.237]
[1717490836529,7.0,165.43,165.4,2.2369]
[1717490836931,9.2366,165.43,165.39,2.2371]
[1717490838866,7.0,165.42,165.35,11.2141]
[1717490839027,9.237,165.4,165.36,47.2375]
[1717490839230,7.0,165.39,165.36,47.2375]
[1717490839844,7.0,165.39,165.37,2.2374]
[1717490841557,7.0,165.39,165.36,45.0]
[1717490841558,7.0,165.39,165.36,47.2374]
[1717490841860,7.0,165.39,165.37,2.2373]
[1717490842039,7.0,165.4,165.37,2.2373]
[1717490843262,7.0,165.41,165.38,2.2372]
[1717490844959,9.2368,165.41,165.37,2.2373]
[1717490846362,20.1272,165.45,165.38,2.2371]
[1717490846363,7.0,165.42,165.38,2.2371]
[1717490846571,9.2368,165.42,165.38,2.2371]
[1717490846752,2.2365,165.44,165.38,7.0]
[1717490846959,2.2363,165.45,165.4,2.2369]
[1717490847162,2.2363,165.45,165.41,2.2368]
[1717490847375,9.2363,165.45,165.41,2.2368]
[1717490848283,9.2363,165.45,165.39,45.0]
[1717490848284,9.2363,165.45,165.4,2.2369]
[1717490848857,7.0,165.44,165.4,2.2369]
[1717490851065,7.0,165.43,165.4,2.2369]
[1717490853058,7.0,165.42,165.4,2.2369]
[1717490855361,7.0,165.43,165.4,2.2369]
[1717490856157,7.0,165.43,165.41,2.2368]
[1717490860167,7.0,165.44,165.41,2.2368]
[1717490865488,7.0,165.43,165.41,2.2368]
[1717490866165,7.0,165.42,165.39,47.237]
[1717490866397,7.0,165.43,165.39,47.237]
[1717490866701,7.0,165.42,165.38,2.2372]
[1717490866873,7.0,165.42,165.36,13.4249]
[1717490866874,7.0,165.42,165.39,2.2371]
[1717490867193,7.0,165.41,165.39,2.2371]
[1717490870695,7.0,165.4,165.38,2.2372]
[1717490872815,2.2366,165.43,165.38,2.2372]
[1717490872997,7.0,165.41,165.38,2.2372]
[1717490873489,2.2366,165.43,165.38,2.2372]
[1717490873699,7.0,165.41,165.38,2.2372]
[1717490875707,7.0,165.41,165.39,2.237]
[1717490875874,7.0,165.42,165.39,2.237]
[1717490876078,7.0,165.42,165.38,2.2372]
[1717490876699,9.2367,165.42,165.38,2.2372]
[1717490877294,7.0,165.41,165.38,2.2372]
[1717490885211,2.2366,165.43,165.39,2.2371]
[1717490885383,7.0,165.43,165.4,2.2369]
[1717490885811,7.0,165.44,165.4,2.2369]
[1717490886512,9.2364,165.44,165.4,2.2369]
[1717490886884,2.2364,165.44,165.4,2.2369]
[1717490887087,7.0,165.43,165.4,8.3318]
[1717490887607,9.2364,165.44,165.4,8.3318]
[1717490888115,7.0,165.42,165.39,2.2371]
[1717490888283,7.0,165.41,165.38,2.2372]
[1717490888486,7.0,165.4,165.37,45.0]
[1717490888710,7.0,165.4,165.38,2.2372]
[1717490890088,7.0,165.4,165.39,2.2371]
[1717490897498,2.2365,165.44,165.4,2.2369]
[1717490897697,7.0,165.41,165.4,2.2369]
[1717490898010,9.2369,165.41,165.37,2.2373]
[1717490898317,11.4731,165.44,165.37,2.2373]
[1717490898318,7.0,165.39,165.37,2.2373]
[1717490898518,7.0,165.39,165.38,2.2372]
[1717490900001,2.2368,165.41,165.37,2.2373]
[1717490902911,7.0,165.41,165.38,2.2372]
[1717490903325,9.2367,165.42,165.38,2.2372]
[1717490905091,9.2368,165.41,165.37,2.2373]
[1717490905290,7.0,165.4,165.37,2.2373]
[1717490907703,2.2368,165.41,165.37,2.2373]
[1717490907904,9.2368,165.41,165.37,2.2373]
[1717490909424,2.2372,165.38,165.34,122.2377]
[1717490909624,2.2372,165.38,165.35,45.0]
[1717490909925,9.2371,165.39,165.35,47.2376]
[1717490910223,7.0,165.38,165.35,47.2376]
[1717490911526,9.2372,165.38,165.35,45.0]
[1717490911911,7.0,165.38,165.35,47.2376]
[1717490916528,7.0,165.37,165.35,45.0]
[1717490918718,7.0,165.37,165.35,47.2376]
[1717490922829,7.0,165.37,165.35,45.0]
[1717490923014,7.0,165.36,165.35,45.0]
[1717490927241,7.0,165.37,165.35,45.0]
[1717490927925,7.0,165.37,165.35,47.2376]
[1717490928417,7.0,165.37,165.35,2.2376]
[1717490931338,7.0,165.37,165.34,2.2377]
[1717490933249,7.0,165.36,165.33,47.2379]
[1717490933417,7.0,165.35,165.33,47.2379]
[1717490935649,7.0,165.35,165.32,2.238]
[1717490938836,7.0,165.34,165.32,2.238]
[1717490940152,7.0,165.34,165.31,47.2381]
[1717490941254,7.0,165.33,165.31,47.2381]
[1717490942244,7.49870484,165.38,165.31,47.2381]
[1717490942245,2.2376,165.36,165.31,47.2381]
[1717490942432,7.0,165.34,165.31,47.2381]
[1717490946454,9.2378,165.34,165.3,2.2383]
[1717490946626,7.49864328,165.38,165.3,2.2383]
[1717490946627,7.0,165.33,165.3,2.2383]
[1717490950942,2.2378,165.34,165.3,2.2383]
[1717490951129,7.0,165.33,165.3,2.2383]
[1717490952453,9.2382,165.31,165.27,2.2386]
[1717490952643,7.0,165.3,165.27,2.2386]
[1717490953230,14.21324717,165.35,165.26,2.2388]
[1717490953231,7.0,165.29,165.26,2.2388]
[1717490953431,7.0,165.27,165.25,2.2389]
[1717490954449,2.2385,165.29,165.24,2.2391]
[1717490954644,2.2385,165.29,165.22,11.4788]
[1717490954956,7.0,165.28,165.25,2.239]
[1717490956963,2.2384,165.3,165.25,2.239]
[1717490957141,20.0,165.32,165.26,2.2388]
[1717490957461,7.0,165.3,165.26,2.2388]
[1717490959132,9.2383,165.3,165.26,2.2388]
[1717490961092,2.2385,165.29,165.25,47.2389]
[1717490964148,7.0,165.27,165.25,45.0]
[1717490964373,9.2387,165.27,165.25,45.0]
[1717490965048,7.0,165.27,165.2,131.1981]
[1717490965243,7.0,165.27,165.21,20.0]
[1717490965462,7.0,165.27,165.22,45.0]
[1717490965670,7.0,165.27,165.22,51.4913]
[1717490966366,9.2387,165.27,165.23,2.2392]
[1717490966869,7.0,165.27,165.23,2.2392]
[1717490967377,7.0,165.27,165.24,2.2391]
[1717490967765,9.2389,165.26,165.22,47.2394]
[1717490968077,9.2389,165.26,165.23,45.0]
[1717490968239,9.2389,165.26,165.22,2.2394]
[1717490969758,7.0,165.23,165.21,47.2395]
[1717490970276,7.0,165.23,165.21,2.2395]
[1717490971542,7.0,165.23,165.18,15.6792]
[1717490971773,2.2389,165.26,165.22,2.2394]
[1717490971774,7.0,165.24,165.22,2.2394]
[1717490972642,7.0,165.24,165.21,2.2395]
[1717490979252,7.0,165.23,165.21,2.2395]
[1717490980176,7.0,165.23,165.2,2.2396]
[1717490980683,7.0,165.22,165.2,2.2396]
[1717490981354,7.0,165.23,165.2,2.2396]
[1717490985065,9.2393,165.23,165.19,47.2397]
[1717490985270,9.2393,165.23,165.19,2.2397]
[1717490985671,7.0,165.22,165.19,2.2397]
[1717490993084,7.0,165.21,165.19,2.2397]
[1717490994764,7.0,165.21,165.18,45.0]
[1717490995385,7.0,165.21,165.18,47.2399]
[1717490998178,2.2393,165.23,165.18,47.2399]
[1717490998493,7.0,165.21,165.18,47.2399]
[1717491002289,7.0,165.21,165.18,45.0]
[1717491003101,7.0,165.2,165.18,45.0]
[1717491003392,7.0,165.2,165.18,47.2399]
[1717491006584,7.0,165.2,165.17,2.24]
[1717491006793,7.0,165.19,165.17,2.24]
[1717491009003,7.0,165.2,165.17,2.24]
[1717491013096,7.0,165.2,165.16,3.0522324]
[1717491013283,7.0,165.19,165.16,3.0522324]
[1717491013988,7.0,165.18,165.16,3.0522324]
[1717491014922,7.0,165.18,165.16,0.8120324]
[1717491016008,9.24,165.18,165.16,0.8120324]
[1717491016181,7.0,165.17,165.16,0.8120324]
[1717491019833,9.2401,165.17,165.16,0.8120324]
[1717491020003,7.0,165.17,165.16,0.8120324]
[1717491021132,31.1895,165.17,165.16,0.8120324]
[1717491021525,35.7718,165.17,165.16,0.8120324]
[1717491023024,28.7718,165.17,165.16,0.8120324]
[1717491023200,35.7718,165.17,165.16,0.8120324]
[1717491026120,28.7718,165.17,165.16,0.8120324]
[1717491026312,35.7718,165.17,165.16,0.8120324]
[1717491027072,52.1294,165.17,165.16,0.8120324]
[1717491027333,2.2409,165.11,165.09,0.0648375]
[1717491027529,22.2655,165.1,165.09,0.0648375]
[1717491027732,22.2655,165.1,165.01,2.2422]
[1717491027733,2.2412,165.09,165.01,2.2422]
[1717491027956,7.0,165.06,165.0,3.0543324]
[1717491028318,7.0,165.06,165.01,2.2422]
[1717491028525,8.549,165.1,165.0,9.6969324]
[1717491028724,20.0,165.09,165.01,2.2422]
[1717491029305,7.0,165.06,165.01,2.2422]
[1717491029505,22.2412,165.09,165.01,2.2422]
[1717491029732,7.0,165.05,165.0,7.4545324]
[1717491029910,7.0,165.05,165.0,0.8120324]
[1717491030465,7.0,165.03,165.0,0.8120324]
[1717491031347,2.2416,165.06,165.0,0.8120324]
[1717491031348,7.0,165.08,165.01,9.2422]
[1717491031652,7.0,165.07,165.02,2.2421]
[1717491031810,7.0,165.06,165.02,2.2421]
[1717491032640,6.3079,165.1,165.01,45.0]
[1717491032641,6.3079,165.1,165.03,2.2419]
[1717491032808,7.0,165.07,165.03,2.2419]
[1717491032998,7.0,165.07,165.01,45.0]
[1717491033424,7.0,165.07,165.02,7.0]
[1717491033636,7.0,165.08,165.03,45.0]
[1717491034007,2.241,165.1,165.03,54.2419]
[1717491034244,7.0,165.08,165.03,54.2419]
[1717491034445,2.2409,165.12,165.03,58.0628]
[1717491034652,8.5716,165.14,165.05,7.0]
[1717491034858,2.2403,165.15,165.08,2.2413]
[1717491035059,22.4705,165.18,165.08,2.2413]
[1717491035060,7.0,165.12,165.08,45.0]
[1717491035226,2.2403,165.16,165.08,45.0]
[1717491035424,7.0,165.13,165.08,45.0]
[1717491035653,7.0,165.13,165.08,47.2413]
[1717491036223,6.0932,165.22,165.09,120.17]
[1717491036424,7.0,165.17,165.13,2.2406]
[1717491037054,2.2397,165.2,165.13,2.2406]
[1717491037253,7.0,165.18,165.13,2.2406]
[1717491037559,7.0,165.17,165.13,2.2406]
[1717491037760,2.2397,165.2,165.14,2.2405]
[1717491038055,15.4247,165.23,165.16,7.0]
[1717491038056,2.2394,165.23,165.16,7.0]
[1717491038274,7.0,165.21,165.17,45.0]
[1717491039139,7.0,165.21,165.16,45.0]
[1717491039329,7.0,165.2,165.16,45.0]
[1717491039529,7.0,165.2,165.15,53.6166]
[1717491039859,7.0,165.21,165.16,8.6165]
[1717491040036,7.0,165.21,165.17,45.0]
[1717491040236,28.0,165.28,165.18,6.3763]
[1717491040468,7.0,165.23,165.19,47.2398]
[1717491040672,6.0758,165.3,165.19,47.2398]
[1717491040673,2.2387,165.27,165.19,52.0]
[1717491040837,6.7138,165.34,165.24,2.2391]
[1717491040838,6.2623,165.34,165.24,2.2391]
[1717491041038,7.0,165.27,165.23,53.3391]
[1717491041260,7.0,165.28,165.23,53.3391]
[1717491043133,2.2382,165.32,165.24,2.2391]
[1717491043339,20.0,165.33,165.23,58.3723]
[1717491043550,7.0,165.3,165.25,2.239]
[1717491043764,7.0,165.31,165.26,2.2388]
[1717491044042,7.0,165.31,165.26,47.2388]
[1717491044239,2.2379,165.33,165.27,8.5567]
[1717491044458,11.1865,165.38,165.27,8.5567]
[1717491044459,2.2378,165.34,165.28,47.2386]
[1717491044651,7.0,165.32,165.28,45.0]
[1717491045053,2.2379,165.33,165.28,45.0]
[1717491045362,7.0,165.33,165.28,53.3866]
[1717491045935,15.887,165.41,165.3,7.0]
[1717491046138,2.2371,165.4,165.31,58.488]
[1717491046341,7.0,165.38,165.34,2.2376]
[1717491046565,7.0,165.38,165.34,8.5969]
[1717491046755,7.0,165.38,165.35,45.0]
[1717491047267,7.0,165.39,165.35,45.0]
[1717491047763,9.2372,165.39,165.35,45.0]
[1717491047969,7.0,165.38,165.35,45.0]
[1717491048261,7.0,165.37,165.35,45.0]
[1717491049239,7.0,165.36,165.35,45.0]
[1717491049561,7.0,165.37,165.35,45.0]
[1717491052368,2.237,165.4,165.35,45.0]
[1717491052666,7.0,165.39,165.35,47.2376]
[1717491052845,7.0,165.39,165.35,2.2376]
[1717491053955,9.237,165.4,165.35,2.2376]
[1717491054355,20.0,165.39,165.35,2.2376]
[1717491054554,20.0,165.39,165.34,54.2377]
[1717491054749,20.0,165.39,165.34,53.8295]
[1717491056738,22.2371,165.39,165.34,53.8295]
[1717491057275,29.2371,165.39,165.34,53.8295]
[1717491058145,9.2373,165.38,165.34,51.5918]
[1717491058352,7.0,165.37,165.34,45.0]
[1717491059180,7.0,165.37,165.3,10.737]
[1717491059354,7.0,165.33,165.25,6.2024]
[1717491059704,3.02354959,165.37,165.24,120.0]
[1717491059705,4.4751,165.36,165.24,6.6408]
[1717491059975,7.0,165.31,165.25,2.239]
[1717491060269,7.0,165.3,165.26,2.2387]
[1717491060493,7.0,165.3,165.24,6.6408]
[1717491060673,7.0,165.3,165.25,2.239]
[1717491060845,7.0,165.29,165.25,2.239]
[1717491061044,7.0,165.28,165.24,6.6408]
[1717491061447,7.0,165.27,165.23,2.2391]
[1717491061656,7.0,165.26,165.23,2.2391]
[1717491061968,7.0,165.26,165.21,2.2394]
[1717491062270,7.0,165.25,165.2,6.2428]
[1717491062473,7.0,165.25,165.2,8.4823]
[1717491063080,7.0,165.24,165.19,2.2398]
[1717491063381,7.0,165.24,165.2,2.2396]
[1717491063969,7.0,165.24,165.19,2.2398]
[1717491064282,7.0,165.24,165.19,47.2398]
[1717491064459,2.239,165.25,165.19,2.2398]
[1717491064655,7.0,165.22,165.16,13.5791]
[1717491064977,7.0,165.21,165.17,2.24]
[1717491065280,7.0,165.2,165.15,2.2402]
[1717491065492,7.0,165.19,165.15,2.2402]
[1717491066675,7.0,165.18,165.15,2.2402]
[1717491067267,7.0,165.18,165.16,2.2402]
[1717491067471,7.0,165.19,165.16,2.2402]
[1717491067971,2.2395,165.21,165.15,2.2403]
[1717491068156,2.2397,165.2,165.14,2.2405]
[1717491068869,2.2398,165.19,165.13,47.2406]
[1717491069109,2.24,165.18,165.12,2.2407]
[1717491069465,2.2398,165.19,165.14,2.2405]
[1717491069770,30.71977677,165.4,165.1,7.34997089]
[1717491069771,20.0,165.21,165.12,120.0]
[1717491069987,2.239,165.25,165.19,2.2398]
[1717491070150,2.239,165.25,165.15,4.4807]
[1717491070368,2.239,165.25,165.16,45.34]
[1717491070564,2.2391,165.24,165.19,2.2397]
[1717491070765,2.2391,165.24,165.18,2.2399]
[1717491071101,2.2393,165.23,165.16,47.5801]
[1717491071266,2.2394,165.22,165.16,47.2401]
[1717491071482,2.2396,165.21,165.16,45.0]
[1717491071693,2.2397,165.2,165.15,2.2403]
[1717491071861,2.2398,165.19,165.11,1.05222368]
[1717491072183,2.2398,165.19,165.1,6.2988]
[1717491072184,2.2398,165.19,165.1,6.4688]
[1717491072393,2.2399,165.18,165.1,6.2988]
[1717491072590,2.2399,165.18,165.12,2.2406]
[1717491073783,2.2398,165.19,165.13,2.2406]
[1717491074475,2.24,165.18,165.12,2.2407]
[1717491075505,2.2401,165.17,165.11,47.2408]
[1717491076176,2.2401,165.17,165.12,2.2407]
[1717491076498,2.24,165.18,165.12,2.2407]
[1717491076797,22.24,165.18,165.12,2.2407]
[1717491076978,2.2398,165.19,165.13,2.2406]
[1717491077184,22.2395,165.21,165.15,2.2403]
[1717491077378,2.2395,165.21,165.15,2.2403]
[1717491077575,2.2397,165.2,165.14,2.2404]
[1717491078094,2.2395,165.22,165.15,2.2403]
[1717491078386,2.2396,165.21,165.15,2.2403]
[1717491079694,3.02669,165.23,165.12,0.34]
[1717491079895,2.2398,165.19,165.13,2.2405]
[1717491080074,2.2398,165.19,165.14,2.2405]
[1717491081276,2.2398,165.19,165.13,2.2406]
[1717491081480,2.2398,165.19,165.11,45.0]
[1717491081481,6.7187,165.21,165.11,47.2408]
[1717491081794,2.2402,165.17,165.11,2.2408]
[1717491082185,20.0,165.2,165.12,2.2407]
[1717491082186,2.24,165.18,165.12,2.2407]
[1717491082402,20.0,165.2,165.13,2.2406]
[1717491082575,2.2399,165.19,165.13,2.2406]
[1717491083169,2.2399,165.19,165.1,126.2988]
[1717491083170,2.2399,165.19,165.14,2.2405]
[1717491084767,2.2399,165.19,165.13,2.2406]
[1717491085271,2.2399,165.18,165.13,2.2406]
[1717491086085,2.2398,165.2,165.14,2.2404]
[1717491086292,20.0,165.21,165.16,2.2401]
[1717491086602,21.13,165.25,165.15,45.0]
[1717491086978,21.13,165.25,165.14,45.0]
[1717491087381,2.2395,165.22,165.14,45.0]
[1717491087600,2.2395,165.22,165.16,2.2402]
[1717491088099,2.2395,165.22,165.14,45.0]
[1717491088100,2.2395,165.22,165.14,165.0]
[1717491088272,21.13,165.25,165.15,0.34]
[1717491088474,2.2393,165.23,165.17,2.24]
[1717491089100,2.2394,165.22,165.17,2.24]
[1717491089702,2.2395,165.21,165.16,2.2402]
[1717491090402,2.2399,165.19,165.14,47.2404]
[1717491090618,2.24,165.18,165.09,20.1702]
[1717491090774,2.2401,165.17,165.12,2.2407]
[1717491090975,2.24,165.18,165.13,2.2406]
[1717491091206,2.2398,165.19,165.14,2.2405]
[1717491091800,22.2398,165.19,165.14,2.2405]
[1717491091977,2.2398,165.19,165.14,2.2405]
[1717491092176,2.2396,165.21,165.15,2.2403]
[1717491092396,2.2396,165.21,165.15,45.0]
[1717491092904,20.0,165.21,165.16,2.2401]
[1717491093213,2.2394,165.22,165.16,47.2401]
[1717491093378,2.2396,165.21,165.16,47.2401]
[1717491093579,2.2396,165.21,165.17,45.0]
[1717491093774,2.2394,165.23,165.17,2.24]
[1717491094517,2.2394,165.23,165.18,2.2399]
[1717491094705,2.2394,165.23,165.15,45.0]
[1717491094894,2.2394,165.22,165.17,2.24]
[1717491095681,2.2393,165.23,165.18,2.2399]
[1717491095903,2.2393,165.23,165.18,8.4568]
[1717491096216,2.2392,165.24,165.19,47.2397]
[1717491096907,2.2392,165.24,165.19,53.7752]
[1717491097082,2.239,165.25,165.19,53.7752]
[1717491097893,2.239,165.25,165.2,2.2396]
[1717491098284,2.2389,165.26,165.21,2.2395]
[1717491098602,2.2389,165.26,165.21,47.2395]
[1717491099223,2.2387,165.27,165.22,2.2394]
[1717491099380,2.2389,165.26,165.21,53.4781]
[1717491100108,2.2386,165.28,165.23,2.2392]
[1717491100413,2.2386,165.28,165.23,53.2797]
[1717491100587,21.13,165.31,165.23,53.2797]
[1717491100785,20.0,165.3,165.23,53.2797]
[1717491100999,2.2387,165.28,165.23,53.2797]
[1717491101601,2.2387,165.27,165.23,51.0405]
[1717491102195,20.0,165.3,165.23,45.0]
[1717491102819,2.2388,165.27,165.23,45.0]
[1717491103014,20.0,165.3,165.23,45.0]
[1717491103015,2.2389,165.26,165.23,45.0]
[1717491103587,2.239,165.25,165.23,45.0]
[1717491104005,2.2389,165.26,165.23,45.0]
[1717491105551,3.02554953,165.27,165.15,6.4146]
[1717491105734,3.02554953,165.27,165.17,8.6546]
[1717491105735,9.74307264,165.26,165.17,8.6546]
[1717491105919,4.478,165.25,165.17,6.4146]
[1717491106220,2.2394,165.22,165.17,6.4146]
[1717491106399,2.2394,165.22,165.17,8.6546]
[1717491106709,2.2394,165.22,165.17,2.24]
[1717491107210,2.2394,165.22,165.18,2.2399]
[1717491107900,2.2396,165.21,165.14,4.4808]
[1717491108411,2.2394,165.22,165.17,2.24]
[1717491109608,2.2394,165.22,165.18,2.2399]
[1717491109809,22.2391,165.24,165.19,2.2397]
[1717491110432,2.2391,165.24,165.19,2.2397]
[1717491111645,20.0,165.26,165.15,11.2016]
[1717491111646,2.2393,165.23,165.18,2.2399]
[1717491112028,2.2394,165.22,165.17,2.24]
[1717491112228,2.2394,165.22,165.17,2.2401]
[1717491113128,2.2394,165.22,165.15,4.4805]
[1717491113129,2.2394,165.22,165.18,2.2399]
[1717491113443,24.4779,165.26,165.18,2.2399]
[1717491113444,2.2393,165.23,165.18,2.2399]
[1717491114013,2.2394,165.22,165.17,2.24]
[1717491117230,2.2394,165.22,165.13,17.3895]
[1717491117231,2.2396,165.21,165.16,2.2401]
[1717491117426,2.2397,165.2,165.15,2.2403]
[1717491118626,22.2397,165.2,165.15,2.2403]
[1717491118940,2.2397,165.2,165.15,2.2403]
[1717491119314,2.2396,165.21,165.16,2.2401]
[1717491120944,2.2397,165.2,165.15,2.2403]
[1717491121259,2.2397,165.2,165.16,2.2402]
[1717491121552,2.2397,165.2,165.15,2.2403]
[1717491123056,20.0,165.23,165.14,2.2404]
[1717491123057,2.2398,165.19,165.14,2.2404]
[1717491123557,20.0,165.21,165.13,6.1866]
[1717491123558,2.2397,165.2,165.15,2.2403]
[1717491123961,2.2398,165.19,165.14,2.2404]
[1717491124401,3.02709253,165.2,165.09,22.4652]
[1717491124535,2.2402,165.17,165.12,2.2406]
[1717491126063,2.2402,165.17,165.13,2.2406]
[1717491126473,2.2403,165.16,165.11,2.2409]
[1717491126854,22.2403,165.16,165.11,2.2409]
[1717491127175,2.2401,165.17,165.12,2.2407]
[1717491127677,2.2403,165.16,165.11,2.2409]
[1717491128171,2.2403,165.16,165.11,2.2408]
[1717491129874,7.05,165.14,165.11,2.2408]
[1717491130254,7.05,165.14,165.1,2.241]
[1717491130466,7.05,165.14,165.11,2.2409]
[1717491130856,7.05,165.15,165.11,2.2409]